[Event "2nd Bieszczady Chess-ch B 2022"]
[Site "Bystre"]
[Date "2022.07.20"]
[Round "4.4"]
[White "Mikula, Maciej"]
[Black "Kulig, Pawel"]
[Result "0-1"]
[ECO "A15"]
[WhiteElo "1620"]
[BlackElo "1720"]
[Annotator "NA COMBH"]
[PlyCount "72"]
[EventDate "2022.07.17"]
[EventCountry "POL"]
[SourceTitle "playchess.com"]
[Source "ChessBase"]
[SourceQuality "1"]
[TimeControl "5400+30"]

1. c4 {[%emt 0:00:26]} Nf6 {[%emt 0:00:27]} 2. Nf3 {[%emt 0:01:05]} g6 {[%emt 0:00:13]} 3. Nc3 d5 {[%emt 0:00:26]} 4. e3 {[%emt 0:02:56]} Bg7 {[%emt 0:01:39]} 5. d4 {[%emt 0:04:07]} O-O {[%emt 0:01:04]} 6. Be2 {[%emt 0:02:07]} c5 {[%emt 0:00:39]} 7. O-O {[%emt 0:05:31]} cxd4 {[%emt 0:09:05]} 8. Nxd4 {[%emt 0:02:12]} dxc4 {[%emt 0:04:38]} 9. Bxc4 {[%emt 0:02:56]} e5 {[%emt 0:02:14]} 10. Ndb5 {[%emt 0:07:36]} Na6 {[%emt 0:04:36]} 11. b3 {[%emt 0:09:39]} Qe7 {[%emt 0:04:52]} 12. Ba3 {[%emt 0:05:57]} Nb4 {[%emt 0:00:09]} 13. Nd6 {[%emt 0:14:52]} a5 {[%emt 0:00:33]} 14. Ncb5 {[%emt 0:03:25]} Bd7 {[%emt 0:12:34]} 15. Qe2 {[%emt 0:03:39]} Bc6 {[%emt 0:05:06]} 16. Rfd1 {[%emt 0:05:37]} Nd7 {[%emt 0:08:08]} 17. Rac1 {[%emt 0:10:03]} Nb6 {[%emt 0:04:12]} 18. e4 {[%emt 0:01:45]} Rad8 {[%emt 0:02:37]} 19. Qe3 {[%emt 0:06:16]} Nxc4 {[%emt 0:01:13]} 20. bxc4 {[%emt 0:00:37]} Qh4 {[%emt 0:07:34]} 21. Qb3 {[%emt 0:02:00]} Qg4 {[%emt 0:07:08]} 22. Bxb4 {[%emt 0:03:42]} axb4 {[%emt 0:00:10]} 23. f3 {[%emt 0:00:30]} Qh4 {[%emt 0:00:54]} 24. Qxb4 {[%emt 0:01:53]} Bh6 {[%emt 0:01:16]} 25. Rc2 {[%emt 0:00:33]} Be3+ {[%emt 0:01:47]} 26. Kh1 {[%emt 0:01:32]} Bf4 {[%emt 0:01:10]} 27. g3 {[%emt 0:00:18]} Bxg3 {[%emt 0:00:07]} 28. Rg2 {[%emt 0:00:07]} Bf4 {[%emt 0:00:06]} 29. Rdg1 {[%emt 0:02:15]} Qh3 {[%emt 0:04:59]} 30. Qb3 {[%emt 0:00:27]} Rd7 {[%emt 0:00:54]} 31. a4 {[%emt 0:00:36]} Bxb5 {[%emt 0:01:14]} 32. Nxb5 {[%emt 0:00:01]} Rfd8 {[%emt 0:00:17]} 33. c5 {[%emt 0:01:08]} Rd2 {[%emt 0:01:36]} 34. Rxg6+ {[%emt 0:01:10]} hxg6 {[%emt 0:00:07]} 35. Rxg6+ {[%emt 0:00:04]} Kh8 {[%emt 0:00:09]} 36. Qxf7 {[%emt 0:00:13]} Qxh2# {[%emt 0:00:08]} 0-1

[Event "2nd Bieszczady Chess-ch B 2022"]
[Site "Bystre"]
[Date "2022.07.20"]
[Round "4.5"]
[White "Giefert, Sara"]
[Black "Labedz, Dawid"]
[Result "0-1"]
[ECO "D00"]
[WhiteElo "1692"]
[BlackElo "1562"]
[Annotator "NA COMBH"]
[PlyCount "110"]
[EventDate "2022.07.17"]
[EventCountry "POL"]
[SourceTitle "playchess.com"]
[Source "ChessBase"]
[SourceQuality "1"]
[TimeControl "5400+30"]

1. d4 {[%emt 0:00:04]} d5 {[%emt 0:00:10]} 2. Bg5 {[%emt 0:00:11]} c6 {[%emt 0:03:35]} 3. c3 {[%emt 0:00:21]} Bf5 {[%emt 0:01:51]} 4. e3 {[%emt 0:01:09]} Nd7 {[%emt 0:00:41]} 5. Bd3 {[%emt 0:01:28]} Bxd3 {[%emt 0:02:33]} 6. Qxd3 {[%emt 0:00:09]} f6 {[%emt 0:06:41]} 7. Bh4 {[%emt 0:00:50]} e5 {[%emt 0:01:07]} 8. f3 {[%emt 0:02:00]} Bd6 {[%emt 0:05:42]} 9. Nd2 {[%emt 0:02:10]} Ne7 {[%emt 0:02:50]} 10. Ne2 {[%emt 0:02:33]} Rc8 {[%emt 0:15:39]} 11. c4 {[%emt 0:08:55]} c5 {[%emt 0:06:31]} 12. cxd5 {[%emt 0:09:24]} Nxd5 {[%emt 0:01:32]} 13. dxe5 {[%emt 0:04:47]} Nb4 {[%emt 0:00:28]} 14. Qe4 {[%emt 0:04:31]} Bxe5 {[%emt 0:07:18]} 15. a3 {[%emt 0:11:08]} Nc6 {[%emt 0:03:45]} 16. Nc4 {[%emt 0:04:38]} Qe7 {[%emt 0:03:24]} 17. Rd1 {[%emt 0:06:15]} Bb8 {[%emt 0:04:04]} 18. Nc3 {[%emt 0:05:58]} a6 {[%emt 0:05:05]} 19. Kf2 {[%emt 0:12:18]} b5 {[%emt 0:05:48]} 20. Rxd7 {[%emt 0:02:34]} Qxe4 {[%emt 0:01:29]} 21. Nxe4 {[%emt 0:01:02]} Kxd7 {[%emt 0:00:58]} 22. Nb6+ {[%emt 0:00:34]} Ke7 {[%emt 0:02:09]} 23. Nxc8+ {[%emt 0:00:35]} Rxc8 {[%emt 0:00:04]} 24. Nxc5 {[%emt 0:02:38]} Ne5 {[%emt 0:00:03]} 25. b4 {[%emt 0:01:13]} Ba7 {[%emt 0:01:15]} 26. Rd1 {[%emt 0:12:09]} Bxc5 {[%emt 0:00:54]} 27. bxc5 {[%emt 0:00:17]} Rxc5 {[%emt 0:00:02]} 28. Bg3 {[%emt 0:02:05]} Rc2+ {[%emt 0:00:15]} 29. Kf1 {[%emt 0:00:20]} Nc4 {[%emt 0:00:11]} 30. Rd3 {[%emt 0:00:36]} Ke6 {[%emt 0:01:06]} 31. Be1 {[%emt 0:00:45]} Rb2 {[%emt 0:01:56]} 32. e4 {[%emt 0:00:48]} a5 {[%emt 0:00:46]} 33. Rc3 {[%emt 0:01:09]} a4 {[%emt 0:00:43]} 34. Rd3 {[%emt 0:01:12]} Rb3 {[%emt 0:00:09]} 35. Ke2 {[%emt 0:00:32]} Rxa3 {[%emt 0:01:03]} 36. Bb4 {[%emt 0:00:36]} Ra2+ {[%emt 0:00:55]} 37. Kf1 {[%emt 0:00:16]} Rb2 {[%emt 0:00:26]} 38. Bc5 {[%emt 0:00:36]} Rb3 {[%emt 0:00:26]} 39. Rd8 {[%emt 0:00:37]} a3 {[%emt 0:00:47]} 40. f4 {[%emt 0:00:32]} a2 {[%emt 0:00:55]} 41. f5+ {[%emt 0:00:31]} Ke5 {[%emt 0:00:15]} 42. Re8+ {[%emt 0:00:18]} Kf4 {[%emt 0:00:08]} 43. Bd4 {[%emt 0:00:43]} a1=Q+ {[%emt 0:00:39]} 44. Bxa1 {[%emt 0:00:09]} Rb1+ {[%emt 0:00:04]} 45. Kf2 {[%emt 0:00:08]} Rxa1 {[%emt 0:00:05]} 46. g3+ {[%emt 0:00:21]} Kg5 {[%emt 0:00:08]} 47. Re7 {[%emt 0:00:43]} Kh6 {[%emt 0:00:07]} 48. Rb7 {[%emt 0:00:13]} Rb1 {[%emt 0:00:05]} 49. Kf3 {[%emt 0:00:19]} b4 {[%emt 0:00:27]} 50. g4 {[%emt 0:00:40]} b3 {[%emt 0:00:10]} 51. h4 {[%emt 0:00:10]} b2 {[%emt 0:00:36]} 52. g5+ {[%emt 0:00:29]} fxg5 {[%emt 0:00:03]} 53. hxg5+ {[%emt 0:00:08]} Kxg5 {[%emt 0:00:08]} 54. Rxg7+ {[%emt 0:00:08]} Kf6 {[%emt 0:00:06]} 55. Rb7 {[%emt 0:00:09]} Rf1+ {[%emt 0:00:06]} 0-1

[Event "2nd Bieszczady Chess-ch B 2022"]
[Site "Bystre"]
[Date "2022.07.20"]
[Round "4.6"]
[White "Trela, Konrad"]
[Black "Panczuk, Grzegorz"]
[Result "0-1"]
[ECO "C11"]
[WhiteElo "1523"]
[BlackElo "1684"]
[Annotator "NA COMBH"]
[PlyCount "40"]
[EventDate "2022.07.17"]
[EventCountry "POL"]
[SourceTitle "playchess.com"]
[Source "ChessBase"]
[SourceQuality "1"]
[TimeControl "5400+30"]

1. e4 {[%emt 0:00:31]} e6 {[%emt 0:00:06]} 2. Nf3 {[%emt 0:00:02]} d5 {[%emt 0:00:02]} 3. Nc3 {[%emt 0:00:02]} Nf6 {[%emt 0:00:06]} 4. e5 {[%emt 0:00:03]} Nfd7 {[%emt 0:00:03]} 5. d4 {[%emt 0:00:04]} c5 {[%emt 0:00:02]} 6. dxc5 {[%emt 0:00:03]} Bxc5 {[%emt 0:00:04]} 7. Bd3 {[%emt 0:00:07]} Nc6 {[%emt 0:00:07]} 8. Bf4 {[%emt 0:00:58]} h6 {[%emt 0:00:14]} 9. h4 {[%emt 0:11:25]} a6 {[%emt 0:02:07]} 10. g4 {[%emt 0:19:47]} Qc7 {[%emt 0:08:47]} 11. Qd2 {[%emt 0:34:08]} Ndxe5 {[%emt 0:23:32]} 12. Nxe5 {[%emt 0:01:27]} Nxe5 {[%emt 0:03:05]} 13. Rh3 {[%emt 0:13:46]} Bd6 {[%emt 0:06:21]} 14. Bxe5 {[%emt 0:06:46]} Bxe5 {[%emt 0:03:38]} 15. Rf3 {[%emt 0:02:43]} Bd7 {[%emt 0:04:21]} 16. O-O-O {[%emt 0:03:36]} Bc6 {[%emt 0:02:48]} 17. Ne2 {[%emt 0:00:50]} d4 {[%emt 0:00:55]} 18. Rh3 {[%emt 0:00:34]} Bg2 {[%emt 0:00:50]} 19. Rg3 {[%emt 0:02:26]} Bxg3 {[%emt 0:00:43]} 20. Nxg3 {[%emt 0:00:32]} O-O-O {[%emt 0:01:05]} 0-1

[Event "2nd Bieszczady Chess-ch B 2022"]
[Site "Bystre"]
[Date "2022.07.20"]
[Round "4.7"]
[White "Sternik, Piotr"]
[Black "Gluch, Pawel"]
[Result "0-1"]
[ECO "D03"]
[WhiteElo "1434"]
[BlackElo "1663"]
[Annotator "NA COMBH"]
[PlyCount "58"]
[EventDate "2022.07.17"]
[EventCountry "POL"]
[SourceTitle "playchess.com"]
[Source "ChessBase"]
[SourceQuality "1"]
[TimeControl "5400+30"]

1. d4 {[%emt 0:00:02]} Nf6 {[%emt 0:00:06]} 2. Bg5 {[%emt 0:00:05]} d5 {[%emt 0:00:07]} 3. Nf3 {[%emt 0:00:17]} Bf5 {[%emt 0:02:58]} 4. e3 {[%emt 0:00:17]} h6 {[%emt 0:00:40]} 5. Bh4 {[%emt 0:00:10]} e6 {[%emt 0:00:53]} 6. Be2 {[%emt 0:00:25]} Be7 {[%emt 0:00:32]} 7. O-O {[%emt 0:00:14]} Nbd7 {[%emt 0:00:51]} 8. c4 {[%emt 0:01:10]} c6 {[%emt 0:01:16]} 9. Nc3 {[%emt 0:00:11]} g5 {[%emt 0:11:10]} 10. Bg3 {[%emt 0:00:07]} Nf8 {[%emt 0:05:35]} 11. cxd5 {[%emt 0:00:36]} exd5 {[%emt 0:00:08]} 12. Nd2 {[%emt 0:01:37]} Ne6 {[%emt 0:01:57]} 13. Be5 {[%emt 0:01:46]} Rg8 {[%emt 0:11:01]} 14. Bxf6 {[%emt 0:02:17]} Bxf6 {[%emt 0:00:38]} 15. b4 {[%emt 0:00:03]} Qd6 {[%emt 0:02:12]} 16. Qb3 {[%emt 0:05:39]} Rd8 {[%emt 0:04:14]} 17. a4 {[%emt 0:22:38]} g4 {[%emt 0:04:29]} 18. f4 {[%emt 0:03:13]} Kf8 {[%emt 0:12:30]} 19. Rac1 {[%emt 0:09:13]} Re8 {[%emt 0:04:13]} 20. b5 {[%emt 0:00:40]} Nxd4 {[%emt 0:00:38]} 21. exd4 {[%emt 0:04:00]} Bxd4+ {[%emt 0:00:11]} 22. Kh1 {[%emt 0:00:08]} Bxc3 {[%emt 0:00:08]} 23. Rxc3 {[%emt 0:05:05]} Rxe2 {[%emt 0:00:11]} 24. Qd1 {[%emt 0:00:28]} Qe6 {[%emt 0:01:49]} 25. bxc6 {[%emt 0:00:37]} bxc6 {[%emt 0:00:05]} 26. Nb3 {[%emt 0:00:26]} Qe4 {[%emt 0:02:24]} 27. Rg1 {[%emt 0:00:30]} g3 {[%emt 0:04:10]} 28. hxg3 {[%emt 0:01:02]} Bh3 {[%emt 0:01:42]} 29. Qf1 {[%emt 0:00:19]} Bxg2+ {[%emt 0:00:09]} 0-1

[Event "2nd Bieszczady Chess-ch B 2022"]
[Site "Bystre"]
[Date "2022.07.20"]
[Round "4.8"]
[White "Kotyla, Jan"]
[Black "Warchol, Jacek"]
[Result "1-0"]
[ECO "D00"]
[WhiteElo "1398"]
[BlackElo "1785"]
[Annotator "NA RC COMBH"]
[PlyCount "97"]
[EventDate "2022.07.17"]
[EventCountry "POL"]
[SourceTitle "playchess.com"]
[Source "ChessBase"]
[SourceQuality "1"]
[TimeControl "5400+30"]

1. d4 {[%emt 0:00:04]} d5 {[%emt 0:00:35]} 2. Bf4 {[%emt 0:00:08]} Nf6 {[%emt 0:00:28]} 3. e3 {[%emt 0:00:17]} Bf5 {[%emt 0:02:10]} 4. Nf3 {[%emt 0:01:40]} Nh5 {[%emt 0:03:16]} 5. Bd3 {[%emt 0:02:45]} Nxf4 {[%emt 0:05:16]} 6. exf4 {[%emt 0:00:08]} Bc8 {[%emt 0:06:59]} 7. f5 {[%emt 0:09:19]} c6 {[%emt 0:01:35]} 8. Nbd2 {[%emt 0:03:22]} Nd7 {[%emt 0:05:33]} 9. O-O {[%emt 0:04:00]} Qb6 {[%emt 0:03:40]} 10. Nb3 {[%emt 0:03:47]} Nf6 {[%emt 0:05:45]} 11. Ne5 {[%emt 0:02:39]} h5 {[%emt 0:01:27]} 12. Qe2 {[%emt 0:03:21]} Qc7 {[%emt 0:06:23]} 13. c4 {[%emt 0:01:07]} Ng4 {[%emt 0:05:32]} 14. f4 {[%emt 0:03:35]} Nxe5 {[%emt 0:07:18]} 15. fxe5 {[%emt 0:00:12]} e6 {[%emt 0:00:21]} 16. cxd5 {[%emt 0:03:33]} exd5 {[%emt 0:04:23]} 17. Rae1 {[%emt 0:05:08]} Bb4 {[%emt 0:05:27]} 18. Rc1 {[%emt 0:00:55]} Ba5 {[%emt 0:05:28]} 19. Rf3 {[%emt 0:09:07]} Bb6 {[%emt 0:05:06]} 20. Rg3 {[%emt 0:02:45]} Rh7 {[%emt 0:01:43]} 21. Qe3 {[%emt 0:04:35]} Kf8 {[%emt 0:04:50]} 22. Re1 {[%emt 0:08:04]} h4 {[%emt 0:04:43]} 23. Rh3 {[%emt 0:02:01]} Rh8 {[%emt 0:00:47]} 24. Qf4 {[%emt 0:01:56]} Qe7 {[%emt 0:02:09]} 25. Rhe3 {[%emt 0:02:09]} Rh5 {[%emt 0:04:31]} 26. f6 {[%emt 0:01:43]} Qe6 {[%emt 0:00:11]} 27. fxg7+ {[%emt 0:01:44]} Kxg7 {[%emt 0:00:37]} 28. Rf1 {[%emt 0:03:45]} Bd7 {[%emt 0:01:36]} 29. Kh1 {[%emt 0:03:02]} Rf8 {[%emt 0:00:38]} 30. Be2 {[%emt 0:01:08]} Rh6 {[%emt 0:00:59]} 31. Ref3 {[%emt 0:03:05]} Qg6 {[%emt 0:02:06]} 32. Bd3 {[%emt 0:00:54]} Qh5 {[%emt 0:00:46]} 33. Qe3 {[%emt 0:05:04]} Bd8 {[%emt 0:00:44]} 34. Bf5 {[%emt 0:00:47]} Bg5 {[%emt 0:01:49]} 35. Qf2 {[%emt 0:00:12]} Bxf5 {[%emt 0:00:55]} 36. Rxf5 {[%emt 0:00:08]} Qg6 {[%emt 0:00:05]} 37. Nc5 {[%emt 0:00:32]} h3 {[%emt 0:01:13]} 38. g3 {[%emt 0:00:40]} Kg8 {[%emt 0:00:13]} 39. Nd7 {[%emt 0:01:20]} Rd8 {[%emt 0:00:20]} 40. Nf6+ {[%emt 0:03:40]} Bxf6 {[%emt 0:00:09]} 41. exf6 {[%emt 0:00:35]} Re8 {[%emt 0:00:40]} 42. Qf4 {[%emt 0:00:18]} Rh5 {[%emt 0:00:35]} 43. Rxh5 {[%emt 0:01:33]} Qxh5 {[%emt 0:00:04]} 44. g4 {[%emt 0:00:52]} Qh4 {[%emt 0:00:31]} 45. Qf5 {[%emt 0:01:21]} Qh6 {[%emt 0:01:14]} 46. g5 {[%emt 0:00:59]} Qh7 {[%emt 0:00:11]} 47. g6 {[%emt 0:01:33]} Qh4 {[%emt 0:01:24]} 48. gxf7+ {[%emt 0:01:49]} Kxf7 {[%emt 0:00:02]} 49. Qd7+ {[%emt 0:00:17]} 1-0

[Event "2nd Bieszczady Chess-ch B 2022"]
[Site "Bystre"]
[Date "2022.07.20"]
[Round "4.9"]
[White "Sypek, Szymon"]
[Black "Mazurek, Filip"]
[Result "1/2-1/2"]
[ECO "E54"]
[WhiteElo "1726"]
[BlackElo "1310"]
[Annotator "NA COMBH"]
[PlyCount "76"]
[EventDate "2022.07.17"]
[EventCountry "POL"]
[SourceTitle "playchess.com"]
[Source "ChessBase"]
[SourceQuality "1"]
[TimeControl "5400+30"]

1. d4 {[%emt 0:00:02]} Nf6 {[%emt 0:00:05]} 2. c4 {[%emt 0:00:14]} e6 {[%emt 0:00:06]} 3. Nf3 {[%emt 0:00:26]} d5 {[%emt 0:00:09]} 4. Nc3 {[%emt 0:01:06]} Bb4 {[%emt 0:00:08]} 5. e3 {[%emt 0:00:33]} O-O {[%emt 0:00:17]} 6. Bd3 {[%emt 0:00:08]} c5 {[%emt 0:00:20]} 7. O-O {[%emt 0:00:45]} dxc4 {[%emt 0:01:10]} 8. Bxc4 {[%emt 0:00:10]} cxd4 {[%emt 0:00:13]} 9. exd4 {[%emt 0:00:41]} b6 {[%emt 0:00:19]} 10. a3 {[%emt 0:01:15]} Bxc3 {[%emt 0:00:32]} 11. bxc3 {[%emt 0:00:06]} Bb7 {[%emt 0:00:18]} 12. Ne5 {[%emt 0:07:13]} Nbd7 {[%emt 0:01:26]} 13. Bd3 {[%emt 0:02:39]} Nxe5 {[%emt 0:02:03]} 14. dxe5 {[%emt 0:00:48]} Qd5 {[%emt 0:00:17]} 15. Qf3 {[%emt 0:03:09]} Qxf3 {[%emt 0:02:29]} 16. gxf3 {[%emt 0:00:05]} Nd7 {[%emt 0:01:01]} 17. f4 {[%emt 0:01:08]} Rac8 {[%emt 0:00:26]} 18. Bb2 {[%emt 0:01:08]} Nc5 {[%emt 0:03:47]} 19. Bc2 {[%emt 0:01:01]} Rfd8 {[%emt 0:00:24]} 20. Rad1 {[%emt 0:02:16]} Bf3 {[%emt 0:01:21]} 21. Rd4 {[%emt 0:00:58]} g6 {[%emt 0:07:15]} 22. Re1 {[%emt 0:04:40]} Rxd4 {[%emt 0:01:51]} 23. cxd4 {[%emt 0:00:10]} Nb7 {[%emt 0:00:16]} 24. Bd3 {[%emt 0:00:21]} Bd5 {[%emt 0:00:36]} 25. Rc1 {[%emt 0:17:26]} Rxc1+ {[%emt 0:00:21]} 26. Bxc1 {[%emt 0:00:01]} Na5 {[%emt 0:00:28]} 27. Bd2 {[%emt 0:06:11]} Nc6 {[%emt 0:01:52]} 28. Bc3 {[%emt 0:00:18]} Kf8 {[%emt 0:01:06]} 29. Kf1 {[%emt 0:00:36]} Ke8 {[%emt 0:00:15]} 30. Ke2 {[%emt 0:01:24]} Kd7 {[%emt 0:00:26]} 31. Ke3 {[%emt 0:16:18]} Ne7 {[%emt 0:00:57]} 32. Bb4 {[%emt 0:01:48]} Nf5+ {[%emt 0:00:37]} 33. Bxf5 {[%emt 0:00:07]} gxf5 {[%emt 0:00:20]} 34. Kd3 {[%emt 0:02:48]} Kc6 {[%emt 0:00:26]} 35. Kc3 {[%emt 0:00:34]} Be4 {[%emt 0:00:20]} 36. Kc4 {[%emt 0:05:44]} Bd5+ {[%emt 0:00:08]} 37. Kc3 {[%emt 0:00:06]} Be4 {[%emt 0:00:08]} 38. Bd6 {[%emt 0:01:53]} Bf3 {[%emt 0:01:14]} 1/2-1/2

[Event "2nd Bieszczady Chess-ch B 2022"]
[Site "Bystre"]
[Date "2022.07.20"]
[Round "4.10"]
[White "Idzior, Izabela"]
[Black "Kusiak, Mateusz"]
[Result "1/2-1/2"]
[ECO "B34"]
[WhiteElo "1260"]
[BlackElo "1693"]
[Annotator "NA COMBH"]
[PlyCount "57"]
[EventDate "2022.07.17"]
[EventCountry "POL"]
[SourceTitle "playchess.com"]
[Source "ChessBase"]
[SourceQuality "1"]
[TimeControl "5400+30"]

1. e4 {[%emt 0:00:02]} c5 {[%emt 0:00:03]} 2. Nf3 {[%emt 0:00:03]} g6 {[%emt 0:00:11]} 3. d4 {[%emt 0:00:09]} cxd4 {[%emt 0:00:04]} 4. Nxd4 {[%emt 0:00:05]} Nc6 {[%emt 0:00:54]} 5. Nc3 {[%emt 0:01:09]} Bg7 {[%emt 0:00:27]} 6. Be3 {[%emt 0:00:19]} Nf6 {[%emt 0:00:12]} 7. Be2 {[%emt 0:01:04]} O-O {[%emt 0:00:22]} 8. Qd2 {[%emt 0:01:25]} d5 {[%emt 0:03:24]} 9. Nxc6 {[%emt 0:05:19]} bxc6 {[%emt 0:01:18]} 10. Rd1 {[%emt 0:03:12]} Qc7 {[%emt 0:03:18]} 11. exd5 {[%emt 0:03:25]} cxd5 {[%emt 0:00:57]} 12. O-O {[%emt 0:04:10]} Rd8 {[%emt 0:01:57]} 13. Nb5 {[%emt 0:09:34]} Qb7 {[%emt 0:04:39]} 14. Qa5 {[%emt 0:05:30]} Bd7 {[%emt 0:03:25]} 15. Nc7 {[%emt 0:06:08]} Rab8 {[%emt 0:15:59]} 16. Ba6 {[%emt 0:24:48]} Qxb2 {[%emt 0:19:54]} 17. Bxa7 {[%emt 0:04:15]} Qb4 {[%emt 0:01:49]} 18. Qxb4 {[%emt 0:01:35]} Rxb4 {[%emt 0:00:08]} 19. Bc5 {[%emt 0:03:15]} Ra4 {[%emt 0:02:58]} 20. Bxe7 {[%emt 0:01:25]} Rb8 {[%emt 0:00:03]} 21. Bxf6 {[%emt 0:02:26]} Bxf6 {[%emt 0:00:07]} 22. Nxd5 {[%emt 0:03:12]} Rxa6 {[%emt 0:04:45]} 23. Nxf6+ {[%emt 0:00:06]} Rxf6 {[%emt 0:00:06]} 24. Rxd7 {[%emt 0:00:06]} Ra6 {[%emt 0:00:04]} 25. Rc7 {[%emt 0:10:35]} Rxa2 {[%emt 0:00:14]} 26. c4 {[%emt 0:00:46]} Rc2 {[%emt 0:00:07]} 27. h3 {[%emt 0:02:21]} Rb4 {[%emt 0:00:13]} 28. g4 {[%emt 0:01:14]} Rbxc4 {[%emt 0:00:37]} 29. Rxc4 {[%emt 0:00:06]} 1/2-1/2

[Event "2nd Bieszczady Chess-ch B 2022"]
[Site "Bystre"]
[Date "2022.07.21"]
[Round "5.1"]
[White "Biesiadecki, Adam"]
[Black "Tokarz, Izabela"]
[Result "1/2-1/2"]
[ECO "E10"]
[WhiteElo "1776"]
[BlackElo "1694"]
[Annotator "NA RC COMBH"]
[PlyCount "74"]
[EventDate "2022.07.17"]
[EventCountry "POL"]
[SourceTitle "playchess.com"]
[Source "ChessBase"]
[SourceQuality "1"]
[TimeControl "5400+30"]

1. d4 {[%emt 0:00:02]} Nf6 {[%emt 0:00:04]} 2. c4 {[%emt 0:00:06]} e6 {[%emt 0:01:21]} 3. Nf3 {[%emt 0:00:36]} d5 {[%emt 0:00:05]} 4. g3 {[%emt 0:00:47]} Nbd7 {[%emt 0:07:58]} 5. Bg2 {[%emt 0:02:54]} Ne4 {[%emt 0:02:50]} 6. O-O {[%emt 0:03:01]} Ndf6 {[%emt 0:00:30]} 7. Qc2 {[%emt 0:00:21]} b6 {[%emt 0:07:58]} 8. Ne5 {[%emt 0:04:42]} c5 {[%emt 0:05:21]} 9. cxd5 {[%emt 0:09:29]} exd5 {[%emt 0:07:33]} 10. Nc3 {[%emt 0:06:29]} Nxc3 {[%emt 0:09:22]} 11. bxc3 {[%emt 0:05:16]} Be7 {[%emt 0:01:24]} 12. Nc6 {[%emt 0:03:29]} Qc7 {[%emt 0:01:43]} 13. Nxe7 {[%emt 0:00:09]} Qxe7 {[%emt 0:00:05]} 14. c4 {[%emt 0:02:29]} Bb7 {[%emt 0:02:06]} 15. cxd5 {[%emt 0:07:33]} Bxd5 {[%emt 0:04:37]} 16. Qa4+ {[%emt 0:03:33]} Qd7 {[%emt 0:03:26]} 17. Qxd7+ {[%emt 0:00:22]} Kxd7 {[%emt 0:00:01]} 18. Bxd5 {[%emt 0:01:33]} Nxd5 {[%emt 0:00:02]} 19. dxc5 {[%emt 0:00:48]} bxc5 {[%emt 0:00:41]} 20. Rd1 {[%emt 0:01:41]} Ke6 {[%emt 0:00:45]} 21. Bb2 {[%emt 0:02:21]} f6 {[%emt 0:01:01]} 22. Rac1 {[%emt 0:02:22]} Rhc8 {[%emt 0:00:07]} 23. f4 {[%emt 0:05:50]} Nb6 {[%emt 0:06:34]} 24. Rc2 {[%emt 0:07:14]} c4 {[%emt 0:02:06]} 25. e4 {[%emt 0:10:21]} Rd8 {[%emt 0:02:27]} 26. Bd4 {[%emt 0:03:44]} f5 {[%emt 0:03:50]} 27. g4 {[%emt 0:04:22]} fxe4 {[%emt 0:01:37]} 28. f5+ {[%emt 0:00:16]} Kf7 {[%emt 0:00:09]} 29. Kf2 {[%emt 0:00:30]} Rd5 {[%emt 0:01:07]} 30. Ke3 {[%emt 0:00:55]} Re8 {[%emt 0:01:43]} 31. Rb1 {[%emt 0:02:08]} h6 {[%emt 0:02:06]} 32. Bxb6 {[%emt 0:01:53]} Rd3+ {[%emt 0:00:18]} 33. Ke2 {[%emt 0:00:02]} axb6 {[%emt 0:00:07]} 34. Rxc4 {[%emt 0:00:54]} Rh3 {[%emt 0:00:35]} 35. Rxb6 {[%emt 0:03:03]} Rxh2+ {[%emt 0:00:05]} 36. Ke3 {[%emt 0:00:39]} Rxa2 {[%emt 0:00:28]} 37. Rb7+ {[%emt 0:02:39]} Re7 {[%emt 0:00:05]} 1/2-1/2

[Event "2nd Bieszczady Chess-ch B 2022"]
[Site "Bystre"]
[Date "2022.07.21"]
[Round "5.2"]
[White "Panczuk, Grzegorz"]
[Black "Sola, Wojciech"]
[Result "0-1"]
[ECO "A45"]
[WhiteElo "1684"]
[BlackElo "1780"]
[Annotator "NA RC COMBH"]
[PlyCount "90"]
[EventDate "2022.07.17"]
[EventCountry "POL"]
[SourceTitle "playchess.com"]
[Source "ChessBase"]
[SourceQuality "1"]
[TimeControl "5400+30"]

1. d4 {[%emt 0:00:03]} Nf6 {[%emt 0:00:13]} 2. Bg5 {[%emt 0:00:08]} g6 {[%emt 0:01:09]} 3. Nc3 {[%emt 0:00:07]} Bg7 {[%emt 0:00:05]} 4. e4 {[%emt 0:00:05]} c6 {[%emt 0:03:37]} 5. Qd2 {[%emt 0:04:43]} d6 {[%emt 0:06:55]} 6. f3 {[%emt 0:08:37]} Qc7 {[%emt 0:02:58]} 7. Bh6 {[%emt 0:05:34]} O-O {[%emt 0:01:46]} 8. h4 {[%emt 0:02:48]} e5 {[%emt 0:00:42]} 9. h5 {[%emt 0:02:48]} Bxh6 {[%emt 0:23:01]} 10. Qxh6 {[%emt 0:01:37]} Be6 {[%emt 0:10:25]} 11. dxe5 {[%emt 0:05:12]} dxe5 {[%emt 0:00:25]} 12. Nh3 {[%emt 0:00:15]} Bxh3 {[%emt 0:07:18]} 13. hxg6 {[%emt 0:04:36]} Nbd7 {[%emt 0:12:07]} 14. gxf7+ {[%emt 0:04:39]} Rxf7 {[%emt 0:09:53]} 15. Bc4 {[%emt 0:04:38]} b5 {[%emt 0:04:42]} 16. Bxf7+ {[%emt 0:03:15]} Kxf7 {[%emt 0:00:01]} 17. Rxh3 {[%emt 0:01:03]} Rg8 {[%emt 0:00:31]} 18. g4 {[%emt 0:00:56]} Qd6 {[%emt 0:03:51]} 19. Qd2 {[%emt 0:02:01]} Qxd2+ {[%emt 0:02:01]} 20. Kxd2 {[%emt 0:00:09]} Nc5 {[%emt 0:00:03]} 21. Rd1 {[%emt 0:03:23]} Ne6 {[%emt 0:01:24]} 22. Ne2 {[%emt 0:00:30]} Ng5 {[%emt 0:00:33]} 23. Rhh1 {[%emt 0:15:58]} Nxf3+ {[%emt 0:01:51]} 24. Kc1 {[%emt 0:01:53]} Ke6 {[%emt 0:01:37]} 25. Rdf1 {[%emt 0:02:41]} Ng5 {[%emt 0:00:16]} 26. Rh6 {[%emt 0:06:33]} Rg6 {[%emt 0:00:15]} 27. Rxg6 {[%emt 0:00:23]} hxg6 {[%emt 0:00:01]} 28. Ng3 {[%emt 0:00:42]} Ngxe4 {[%emt 0:02:25]} 29. Nxe4 {[%emt 0:00:12]} Nxe4 {[%emt 0:00:22]} 30. Rf8 {[%emt 0:00:53]} Nf6 {[%emt 0:01:03]} 31. Rc8 {[%emt 0:00:41]} Kd7 {[%emt 0:00:41]} 32. Rh8 {[%emt 0:01:59]} Nxg4 {[%emt 0:00:44]} 33. Rg8 {[%emt 0:00:35]} Ne3 {[%emt 0:01:37]} 34. Rxg6 {[%emt 0:00:12]} a5 {[%emt 0:00:16]} 35. b3 {[%emt 0:00:52]} Nd5 {[%emt 0:00:47]} 36. Kd2 {[%emt 0:00:28]} b4 {[%emt 0:01:07]} 37. Rg7+ {[%emt 0:01:31]} Ne7 {[%emt 0:00:35]} 38. Kd3 {[%emt 0:03:05]} Kd6 {[%emt 0:00:11]} 39. c4 {[%emt 0:03:02]} bxc3 {[%emt 0:00:36]} 40. Kxc3 {[%emt 0:00:13]} e4 {[%emt 0:01:06]} 41. Rg5 {[%emt 0:03:39]} Nd5+ {[%emt 0:00:35]} 42. Kd4 {[%emt 0:00:25]} e3 {[%emt 0:00:43]} 43. Rg2 {[%emt 0:04:10]} Nf4 {[%emt 0:00:44]} 44. Rh2 {[%emt 0:01:05]} e2 {[%emt 0:00:03]} 45. Rh6+ {[%emt 0:00:59]} Ne6+ {[%emt 0:00:14]} 0-1